bitfinex-derivatives/quotes_SOLF0:USTF0_20250820
["timestamp","ask_amount","ask_price","bid_price","bid_amount"]
[1755706141978,3.09,183.52,183.46,5.4506]
[1755706142381,5.037849,183.56,183.45,5.48713661]
[1755706142581,3.09,183.5,183.45,0.03623661]
[1755706142885,5.4498,183.49,183.45,0.03623661]
[1755706143080,5.037849,183.56,183.45,0.03623661]
[1755706143390,5.4484,183.54,183.46,4.56495455]
[1755706143583,3.09,183.57,183.47,4.56495455]
[1755706143786,3.09,183.57,183.48,4.56495455]
[1755706144079,5.037849,183.61,183.48,5.45]
[1755706144279,3.09,183.54,183.5,0.03942033]
[1755706144487,5.037849,183.61,183.5,0.03942033]
[1755706144683,3.09,183.57,183.5,0.03942033]
[1755706144879,5.449,183.52,183.5,0.03942033]
[1755706145087,3.09,183.51,183.5,0.03942033]
[1755706145474,8.5392,183.51,183.5,0.03942033]
[1755706145985,5.451,183.45,183.4,4.56495455]
[1755706146187,8.541,183.45,183.4,4.56495455]
[1755706146486,3.09,183.5,183.4,4.56495455]
[1755706146685,3.09,183.54,183.42,4.61495455]
[1755706146984,3.09,183.54,183.43,4.56495455]
[1755706147176,0.03530202,183.47,183.43,4.56495455]
[1755706147374,0.03530202,183.47,183.45,5.4507]
[1755706147682,3.09,183.51,183.42,4.56495455]
[1755706147883,0.03775176,183.48,183.42,4.56495455]
[1755706148186,0.03775176,183.48,183.46,0.05]
[1755706148785,0.03775176,183.48,183.43,4.56495455]
[1755706148976,0.03775176,183.48,183.42,4.56495455]
[1755706149179,0.03775176,183.48,183.47,5.4504]
[1755706149787,0.03775176,183.48,183.47,5.5004]
[1755706150189,366.5,183.58,183.47,0.59]
[1755706150190,369.59,183.58,183.47,0.59]
[1755706150390,369.59,183.58,183.48,4.55456597]
[1755706150589,3.09,183.58,183.49,4.55456597]
[1755706150789,3.09,183.58,183.48,4.55456597]
[1755706151095,3.09,183.58,183.47,4.60456597]
[1755706151290,3.09,183.58,183.5,5.4494]
[1755706151488,3.09,183.58,183.51,0.03982964]
[1755706152690,3.09,183.64,183.53,4.55456597]
[1755706152894,3.09,183.64,183.59,5.4466]
[1755706153194,12.62,183.63,183.59,5.4466]
[1755706153390,12.62,183.63,183.59,5.48789043]
[1755706153693,12.62,183.63,183.59,0.04129043]
[1755706153996,12.62,183.63,183.59,0.10129043]
[1755706153997,9.53,183.63,183.59,0.10129043]
[1755706154289,9.53,183.63,183.62,5.446]
[1755706154691,3.09,183.66,183.62,5.446]
[1755706154889,3.09,183.66,183.59,0.10129043]
[1755706155193,3.09,183.72,183.59,0.10129043]
[1755706155596,3.09,183.72,183.6,0.06]
[1755706155894,8.5341,183.69,183.65,5.4451]
[1755706156485,3.09,183.69,183.65,5.4451]
[1755706156687,3.09,183.69,183.64,5.4819213]
[1755706157082,8.534,183.69,183.64,5.4819213]
[1755706157291,3.09,183.72,183.64,5.4818213]
[1755706157486,366.28,183.73,183.64,5.4818213]
[1755706157487,5.4451,183.65,183.64,0.0366213]
[1755706157693,366.28,183.73,183.64,0.0366213]
[1755706157894,3.09,183.65,183.64,0.0366213]
[1755706158684,0.04106274,183.7,183.64,0.0366213]
[1755706158894,0.04106274,183.7,183.64,5.4819213]
[1755706159089,0.04106274,183.7,183.64,0.0366213]
[1755706159490,3.09,183.69,183.64,0.0366213]
[1755706159695,0.04106274,183.7,183.64,0.0366213]
[1755706159891,3.13106274,183.7,183.64,0.0366213]
[1755706162095,3.09,183.69,183.64,0.0366213]
[1755706162496,3.09,183.67,183.64,0.0366213]
[1755706162690,144.01,183.69,183.64,0.0366213]
[1755706162887,3.09,183.68,183.64,0.0366213]
[1755706163089,5.4446,183.67,183.64,0.0366213]
[1755706163290,8.5346,183.67,183.64,0.0366213]
[1755706163700,5.4449,183.66,183.64,0.0366213]
[1755706163895,3.09,183.67,183.64,0.0366213]
[1755706164095,140.92,183.69,183.64,0.0366213]
[1755706164294,8.5351,183.65,183.64,0.0366213]
[1755706164598,8.5351,183.65,183.56,0.06]
[1755706164599,3.09,183.65,183.56,0.06]
[1755706164898,8.5362,183.62,183.57,5.4472]
[1755706165095,3.09,183.62,183.57,5.4472]
[1755706165300,5.4465,183.61,183.56,5.4475]
[1755706165499,8.5365,183.61,183.56,5.4475]
[1755706165695,8.5365,183.61,183.52,0.1]
[1755706165894,3.09,183.68,183.5,0.1]
[1755706166103,140.88,183.67,183.53,0.1]
[1755706166398,3.09,183.66,183.53,0.1]
[1755706166798,0.03980816,183.61,183.53,0.1]
[1755706167598,0.03980816,183.61,183.6,5.4466]
[1755706167798,0.03980816,183.61,183.53,0.1]
[1755706168900,3.09,183.6,183.49,0.1]
[1755706169600,0.04191041,183.56,183.49,0.1]
[1755706170106,0.04191041,183.56,183.46,5.4505]
[1755706170309,0.04191041,183.56,183.45,0.1]
[1755706170509,0.04191041,183.56,183.45,4.65456597]
[1755706170705,0.04191041,183.56,183.46,4.55456597]
[1755706170909,0.04191041,183.56,183.47,0.1]
[1755706171209,3.09,183.58,183.47,0.1]
[1755706171408,5.48834684,183.53,183.48,5.4499]
[1755706171604,5.48834684,183.53,183.42,11.12393188]
[1755706171605,3.12954684,183.53,183.44,4.65456597]
[1755706172009,3.12954684,183.53,183.45,0.1]
[1755706172610,5.4497,183.5,183.45,5.4508]
[1755706172810,5.4497,183.5,183.46,0.1]
[1755706173114,0.03954684,183.53,183.46,0.1]
[1755706173306,5.48824684,183.53,183.48,5.4499]
[1755706173504,5.48824684,183.53,183.48,0.1]
[1755706173906,5.4489,183.52,183.48,0.1]
[1755706174108,0.03954684,183.53,183.46,0.1]
[1755706174508,0.03954684,183.53,183.49,5.4496]
[1755706174712,0.03954684,183.53,183.46,0.1]
[1755706174913,0.03954684,183.53,183.45,4.55456597]
[1755706175114,0.03954684,183.53,183.45,0.1]
[1755706175314,3.09,183.52,183.44,4.55456597]
[1755706175509,5.4509,183.46,183.43,4.55456597]
[1755706175710,5.4509,183.46,183.42,4.55456597]
[1755706175923,3.09,183.52,183.42,4.65456597]
[1755706176115,3.09,183.52,183.43,5.4513]
[1755706176316,0.04193166,183.46,183.43,5.5513]
[1755706176517,0.04193166,183.46,183.43,0.1]
[1755706176817,0.04193166,183.46,183.43,4.55456597]
[1755706177010,0.04193166,183.46,183.44,4.55456597]
[1755706177215,0.04193166,183.46,183.45,4.65456597]
[1755706177429,3.09,183.56,183.46,0.1]
[1755706177717,3.09,183.56,183.48,4.54413839]
[1755706177910,369.17,183.6,183.52,5.4487]
[1755706178314,3.09,183.59,183.47,4.54413839]
[1755706178521,3.09,183.59,183.5,5.4493]
[1755706178724,366.08,183.6,183.54,0.04071764]
[1755706179125,3.09,183.55,183.54,0.04071764]
[1755706179318,366.08,183.6,183.54,0.04071764]
[1755706179619,8.538,183.55,183.54,0.04071764]
[1755706181624,8.538,183.55,183.45,6.08608288]
[1755706181625,3.63,183.55,183.45,4.54413839]
[1755706181823,3.09,183.55,183.44,4.54413839]
[1755706182023,3.09,183.55,183.43,4.64413839]
[1755706182220,5.4497,183.5,183.43,4.64413839]
[1755706182425,3.09,183.55,183.43,4.64413839]
[1755706183025,0.0396888,183.51,183.43,4.64413839]
[1755706183223,0.0396888,183.51,183.44,4.54413839]
[1755706183424,0.0396888,183.51,183.49,5.4497]
[1755706184021,0.0396888,183.51,183.44,4.54413839]
[1755706184321,0.0396888,183.51,183.45,4.54413839]
[1755706184824,0.0396888,183.51,183.44,4.54413839]
[1755706185021,0.0396888,183.51,183.43,4.64413839]
[1755706185217,0.0396888,183.51,183.42,4.54413839]
[1755706185414,3.09,183.5,183.41,4.54413839]
[1755706186126,0.03563699,183.47,183.41,4.54413839]
[1755706186426,0.03563699,183.47,183.44,5.4511]
[1755706186816,0.03563699,183.47,183.41,4.54413839]
[1755706187328,0.03563699,183.47,183.4,4.68413839]
[1755706187726,8.5412,183.45,183.42,5.4519]
[1755706187925,5.4512,183.45,183.42,5.4519]
[1755706188226,0.03563699,183.47,183.42,4.54413839]
[1755706188430,0.03563699,183.47,183.43,0.14]
[1755706188826,0.03563699,183.47,183.45,5.451]
[1755706189026,0.03563699,183.47,183.41,4.54413839]
[1755706189330,0.03563699,183.47,183.46,0.14]
[1755706189725,0.03563699,183.47,183.46,5.5907]
[1755706190926,3.09,183.53,183.46,5.5907]
[1755706190927,3.09,183.57,183.5,5.4493]
[1755706191225,3.09,183.57,183.46,4.68413839]
[1755706191429,5.4485,183.54,183.51,5.449]
[1755706192232,8.5385,183.54,183.51,5.48362595]
[1755706192626,3.09,183.54,183.52,5.4488]
[1755706193033,3.09,183.54,183.51,0.03462595]
[1755706193234,8.5384,183.54,183.51,5.48372595]
[1755706193535,3.09,183.59,183.51,0.03462595]
[1755706193729,3.09,183.59,183.53,5.4485]
[1755706194434,8.5376,183.57,183.53,5.4485]
[1755706194629,156.849549,183.63,183.53,5.4485]
[1755706194828,3.09,183.59,183.51,0.03462595]
[1755706196035,8.2489,183.52,183.51,0.03462595]
[1755706196935,8.2489,183.52,183.4,9.1499101]
[1755706196936,5.4503,183.48,183.43,4.54413839]
[1755706197137,5.4503,183.48,183.43,4.71413839]
[1755706197338,5.4503,183.48,183.44,5.4512]
[1755706197538,2.8,183.54,183.43,4.54413839]
[1755706197831,2.8,183.54,183.43,5.4515]
[1755706198035,5.4509,183.46,183.43,5.4515]
[1755706198336,2.8,183.49,183.42,5.4518]
[1755706198736,5.451,183.45,183.42,5.4518]
[1755706198938,2.8,183.49,183.41,4.54413839]
[1755706199135,0.03731082,183.47,183.41,4.54413839]
[1755706199336,5.4509,183.46,183.43,5.4516]
[1755706199535,5.4509,183.46,183.41,4.71413839]
[1755706199737,0.03731082,183.47,183.41,4.71413839]
[1755706200640,0.03731082,183.47,183.46,5.4507]
[1755706200840,0.03731082,183.47,183.43,4.54413839]
[1755706201038,0.03731082,183.47,183.44,0.17]
[1755706201241,0.03731082,183.47,183.46,5.6207]
[1755706201738,0.03731082,183.47,183.46,5.4507]
[1755706201940,0.03731082,183.47,183.45,5.4509]
[1755706202137,0.03731082,183.47,183.42,4.71413839]
[1755706202336,0.03731082,183.47,183.42,0.17]
[1755706202542,2.8,183.46,183.4,4.54413839]
[1755706202737,2.8,183.46,183.39,4.54413839]
[1755706202941,2.8,183.46,183.39,5.4526]
[1755706203246,5.4524,183.41,183.36,4.54413839]
[1755706203548,2.8,183.46,183.36,0.17]
[1755706203740,2.8,183.46,183.36,4.72615905]
[1755706203941,2.8,183.46,183.37,4.55615905]
[1755706204141,140.88,183.5,183.37,4.55615905]
[1755706204142,0.03644038,183.43,183.37,4.55615905]
[1755706204945,0.03644038,183.43,183.41,0.17]
[1755706205143,0.03644038,183.43,183.4,4.55615905]
[1755706205144,0.03644038,183.43,183.42,5.4519]
[1755706205847,0.03644038,183.43,183.42,5.6219]
[1755706206043,0.03644038,183.43,183.42,10.17805905]
[1755706206244,2.8,183.53,183.48,5.45]
[1755706206439,5.4492,183.51,183.48,5.45]
[1755706206646,2.8,183.5,183.44,4.55863752]
[1755706206941,8.2499,183.49,183.46,5.4506]
[1755706207245,2.8,183.53,183.45,0.17]
[1755706207447,2.8,183.53,183.45,4.55863752]
[1755706207647,2.8,183.53,183.46,0.03761525]
[1755706208039,8.2504,183.47,183.46,0.03761525]
[1755706208238,2.8,183.47,183.46,0.03761525]
[1755706208440,5.037849,183.55,183.46,0.03761525]
[1755706208748,2.8,183.48,183.46,0.03761525]
[1755706208949,2.8,183.54,183.46,0.03761525]
[1755706209850,2.8,183.56,183.46,0.03761525]
[1755706210346,2.8,183.58,183.45,4.55863752]
[1755706210548,2.8,183.58,183.49,0.03950772]
[1755706210850,8.2495,183.5,183.49,0.03950772]
[1755706211047,2.8,183.5,183.42,4.55863752]
[1755706211247,5.4501,183.48,183.45,5.451]
[1755706211843,5.037849,183.56,183.44,4.55863752]
[1755706212045,2.8,183.49,183.44,4.76863752]
[1755706212752,2.8,183.51,183.44,4.55863752]
[1755706213948,2.8,183.51,183.42,4.55863752]
[1755706214448,2.8,183.48,183.42,4.55863752]
[1755706214653,2.8409641,183.48,183.41,4.55863752]
[1755706214847,8.2519,183.42,183.41,4.55863752]
[1755706215247,2.8,183.42,183.4,4.55863752]
[1755706215442,0.03533146,183.43,183.39,4.55863752]
[1755706215651,2.83533146,183.43,183.39,4.55863752]
[1755706215854,2.8,183.42,183.39,4.55863752]
[1755706216047,2.8,183.4,183.38,4.55863752]
[1755706216248,0.03533146,183.43,183.38,4.55863752]
[1755706216547,2.8,183.42,183.38,4.55863752]
[1755706216746,2.8,183.41,183.38,4.55863752]
[1755706216948,8.2528,183.39,183.38,4.55863752]
[1755706217144,2.8,183.41,183.37,4.55863752]
[1755706217349,2.83533146,183.43,183.37,4.55863752]
[1755706217548,2.8,183.43,183.37,4.55863752]
[1755706217944,2.8,183.43,183.38,4.55863752]
[1755706218149,0.03446475,183.42,183.39,0.21]
[1755706218645,0.03446475,183.42,183.35,6.08608288]
[1755706218646,0.03446475,183.42,183.41,0.21]
[1755706218851,0.03446475,183.42,183.41,4.76863752]
[1755706219053,0.03446475,183.42,183.41,10.22083752]
[1755706219449,0.03446475,183.42,183.41,5.6622]
[1755706219857,0.03446475,183.42,183.41,11.74828288]
[1755706220352,0.03446475,183.42,183.41,5.6622]
[1755706220748,2.8,183.51,183.46,5.4506]
[1755706220948,2.8,183.51,183.44,4.5691924]
[1755706221158,2.8,183.51,183.43,4.5691924]
[1755706221459,5.45,183.49,183.46,5.4506]
[1755706221757,2.8,183.51,183.44,4.5691924]
[1755706221947,2.8,183.51,183.43,4.5691924]
[1755706222255,2.8,183.49,183.46,0.03930356]
[1755706222455,2.8,183.47,183.46,0.03930356]
[1755706222857,8.2504,183.47,183.46,0.03930356]
[1755706224854,5.4519,183.42,183.4,4.5691924]
[1755706225052,2.8,183.47,183.4,4.5691924]
[1755706225356,2.8,183.47,183.39,4.5691924]
[1755706225757,2.8,183.47,183.41,4.5691924]
[1755706225952,5.4512,183.45,183.42,4.5691924]
[1755706226158,2.8,183.47,183.42,4.5691924]
[1755706226660,2.8,183.47,183.43,5.4514]
[1755706226856,2.8,183.47,183.42,4.5691924]
[1755706227054,5.4508,183.46,183.43,5.4516]
[1755706227256,5.48865916,183.46,183.43,5.4516]
[1755706227459,0.03785916,183.46,183.42,4.5691924]
[1755706227659,5.4513,183.45,183.42,5.4517]
[1755706228055,2.95785916,183.46,183.42,5.4517]
[1755706228257,5.4513,183.44,183.41,10.0213924]
[1755706228458,2.92,183.45,183.41,4.5691924]
[1755706228963,5.4512,183.45,183.42,5.4517]
[1755706229157,0.03785916,183.46,183.43,0.18]
[1755706229359,0.03785916,183.46,183.45,0.18]
[1755706229662,0.03785916,183.46,183.45,5.631]
[1755706230360,2.92,183.59,183.46,0.14]
[1755706230563,2.92,183.59,183.51,4.71228694]
[1755706230867,2.92,183.59,183.52,4.57228694]
[1755706231169,140.82,183.64,183.51,0.14]
[1755706231170,2.92,183.63,183.53,4.57228694]
[1755706231375,2.92,183.63,183.54,4.71228694]
[1755706231673,2.92,183.63,183.59,5.4466]
[1755706231870,2.92,183.63,183.56,4.61415618]
[1755706232766,371.377849,183.7,183.56,4.61415618]
[1755706232767,2.92,183.69,183.57,4.71228694]
[1755706233074,143.74,183.69,183.58,4.57228694]
[1755706233574,143.74,183.69,183.61,0.17635223]
[1755706233769,5.4444,183.68,183.61,0.17635223]
[1755706234167,143.74,183.69,183.61,0.17635223]
[1755706234875,5.4444,183.68,183.61,0.17635223]
[1755706235576,5.4446,183.67,183.63,5.4454]
[1755706236273,140.82,183.69,183.63,5.4454]
[1755706236274,5.4443,183.68,183.63,5.4454]
[1755706236678,2.92,183.68,183.61,5.48235223]
[1755706236877,2.92,183.66,183.61,0.03635223]
[1755706237069,140.82,183.69,183.61,0.17635223]
[1755706238874,5.4447,183.67,183.63,5.4456]
[1755706239074,140.82,183.69,183.61,0.17635223]
[1755706239474,369.26,183.7,183.61,0.17635223]
[1755706239674,140.72,183.69,183.61,0.17635223]
[1755706239872,140.7,183.69,183.61,0.17635223]
[1755706240577,369.26,183.7,183.61,0.17635223]
[1755706240778,5.4445,183.67,183.63,5.4456]
[1755706240974,369.26,183.7,183.63,5.4456]
[1755706241176,2.92,183.7,183.61,0.17635223]
[1755706241878,2.92,183.7,183.61,5.48255223]
[1755706242571,0.03567982,183.67,183.61,5.48255223]
[1755706242778,8.3649,183.66,183.62,5.4459]
[1755706242967,8.3649,183.66,183.61,0.03635223]
[1755706243475,2.92,183.66,183.61,0.17635223]
[1755706244070,0.03567982,183.67,183.63,5.5857]
[1755706244275,0.03567982,183.67,183.63,0.14]
[1755706244479,0.03567982,183.67,183.64,0.14]
[1755706245278,0.03567982,183.67,183.61,0.03635223]
[1755706245580,2.95567982,183.67,183.61,0.03635223]
[1755706246080,8.40027982,183.67,183.61,0.03635223]
[1755706246279,2.95567982,183.67,183.61,0.03635223]
[1755706246482,0.03567982,183.67,183.61,0.03635223]
[1755706246676,0.03567982,183.67,183.64,5.4452]
[1755706247177,2.92,183.66,183.61,0.03635223]
[1755706247687,0.03567982,183.67,183.62,0.14]
[1755706248179,0.03567982,183.67,183.66,5.4448]
[1755706248380,0.03567982,183.67,183.66,5.5848]
[1755706248776,2.92,183.81,183.67,0.11]
[1755706249080,2.92,183.81,183.67,5.147849]
[1755706249278,2.92,183.81,183.68,0.11]
[1755706250180,2.92,183.84,183.78,5.4412]
[1755706250386,2.92,183.82,183.73,0.14718144]
[1755706250585,2.92,183.82,183.73,0.11]
[1755706250786,2.92,183.86,183.77,5.4413]
[1755706251079,2.92,183.86,183.76,0.04069478]
[1755706251780,5.037849,183.91,183.77,0.11]
[1755706251781,2.92,183.91,183.77,0.11]
[1755706252181,2.92,183.91,183.74,5.037849]
[1755706252182,7.957849,183.91,183.74,5.037849]
[1755706252381,2.92,183.9,183.73,0.11]
[1755706252688,2.92,183.9,183.82,0.04001802]
[1755706252891,5.4398,183.83,183.82,0.04001802]
[1755706253086,8.3598,183.83,183.82,0.04001802]
[1755706254490,5.4395,183.84,183.82,0.04001802]
[1755706254688,2.92,183.88,183.82,0.04001802]
[1755706254888,5.4406,183.81,183.73,0.11]
[1755706255088,2.92,183.83,183.75,5.4421]
[1755706255387,2.92,183.83,183.73,0.11]
[1755706255589,5.4409,183.8,183.75,5.4419]
[1755706255783,2.87,183.8,183.73,0.11]
[1755706255977,5.4418,183.77,183.7,5.037849]
[1755706256185,2.87,183.86,183.76,0.03540297]
[1755706256388,2.87,183.86,183.71,0.15]
[1755706256686,2.87,183.86,183.79,0.03527973]
[1755706257093,5.4406,183.81,183.75,0.15]
[1755706257393,2.87,183.85,183.81,0.03991505]
[1755706257593,2.87,183.84,183.81,0.03991505]
[1755706257795,8.3098,183.84,183.75,0.15]
[1755706257982,140.5,183.87,183.75,0.15]
[1755706258185,5.4394,183.85,183.81,0.03758202]
[1755706258592,2.87,183.89,183.81,0.03758202]
[1755706259095,2.87,183.89,183.81,5.47768202]
[1755706259288,2.87,183.89,183.81,0.03758202]
[1755706259691,2.87,183.89,183.84,5.4394]
[1755706260190,5.4384,183.88,183.81,0.03758202]
[1755706260389,2.87,183.89,183.81,0.03758202]
[1755706260589,5.4385,183.88,183.81,0.03758202]
[1755706260986,2.87,183.93,183.82,0.15]
[1755706261292,2.87,183.99,183.86,0.15]
[1755706261588,5.4367,183.94,183.86,0.15]
[1755706261789,2.87,183.95,183.89,5.4378]
[1755706261995,2.87,183.95,183.86,0.15]
[1755706262187,5.4372,183.92,183.86,0.15]
[1755706262387,2.87,183.95,183.86,0.15]
[1755706262691,5.438,183.9,183.82,0.15]
[1755706262892,2.87,183.95,183.82,0.15]
[1755706263081,2.87,183.99,183.83,5.037849]
[1755706263287,2.87,183.96,183.85,0.15]
[1755706263486,2.87,183.96,183.88,5.438]
[1755706263685,5.4371,183.93,183.88,5.438]
[1755706263885,8.3071,183.93,183.85,0.15]
[1755706264080,2.87,183.93,183.89,5.47278078]
[1755706264293,7.907849,183.99,183.89,0.03498078]
[1755706264488,2.87,183.98,183.89,0.03498078]
[1755706264985,2.87,184.01,183.89,0.18498078]
[1755706265392,2.87,184.01,183.89,0.15]
[1755706265694,2.87,184.0,183.93,0.04101429]
[1755706266096,5.4373,183.92,183.84,0.15]
[1755706266397,2.87,183.94,183.84,0.15]
[1755706266696,2.87,183.92,183.84,0.15]
[1755706266987,0.03498643,183.91,183.87,0.15]
[1755706267190,0.03498643,183.91,183.81,5.037849]
[1755706267191,0.03498643,183.91,183.83,0.15]
[1755706267383,2.87,183.94,183.87,0.03589374]
[1755706267894,2.87,183.88,183.87,0.03589374]
[1755706268388,8.3083,183.88,183.87,0.03589374]
[1755706269190,5.4396,183.84,183.76,0.18]
[1755706269393,2.87,183.87,183.76,0.18]
[1755706269688,2.87,183.87,183.76,5.6217]
[1755706269888,2.87,183.87,183.72,0.18]
[1755706270094,15.913549,183.9,183.74,5.4425]
[1755706270095,2.87,183.85,183.74,5.4425]
[1755706270293,2.87,183.85,183.72,0.18]
[1755706270690,2.87,183.85,183.72,5.6228]
[1755706270894,2.87,183.85,183.67,5.037849]
[1755706270895,2.87,183.85,183.68,0.18]
[1755706271296,5.4417,183.77,183.72,5.4428]
[1755706271492,376.4357,183.9,183.67,5.037849]
[1755706271794,2.87,183.88,183.75,0.18]
[1755706272195,2.87,183.88,183.8,5.4406]
[1755706272400,0.03486054,183.83,183.75,0.18]
[1755706274090,0.03486054,183.83,183.82,5.4401]
[1755706274492,0.03486054,183.83,183.79,0.18]
[1755706274693,0.03486054,183.83,183.75,5.217849]
[1755706275100,0.03486054,183.83,183.76,0.18]
[1755706275297,0.03486054,183.83,183.82,5.4401]
[1755706276195,0.03486054,183.83,183.82,5.6201]
[1755706278298,0.03486054,183.83,183.82,6.1601]
[1755706279511,0.03486054,183.83,183.82,5.4401]
[1755706280004,0.03486054,183.83,183.82,9.95601721]
[1755706280807,0.03486054,183.83,183.82,5.4401]
[1755706281101,0.03486054,183.83,183.82,10.13601721]
[1755706281308,0.03486054,183.83,183.82,5.6201]
[1755706281903,0.03486054,183.83,183.82,5.4401]
[1755706282908,2.87,183.82,183.79,4.51811965]
[1755706283313,0.03486054,183.83,183.78,4.51811965]
[1755706283518,2.87,183.8,183.79,0.03571532]
[1755706283919,0.03486054,183.83,183.79,0.03571532]
[1755706284115,2.87,183.81,183.79,0.03571532]
[1755706284316,2.87,183.8,183.79,0.03571532]
[1755706285319,2.90486054,183.83,183.79,0.03571532]
[1755706285619,0.03486054,183.83,183.82,5.4401]
[1755706285815,0.03486054,183.83,183.8,4.51811965]
[1755706286011,0.03486054,183.83,183.79,0.21571532]
[1755706286012,0.03486054,183.83,183.79,0.03571532]
[1755706286217,3.05,183.8,183.79,0.03571532]
[1755706286616,3.05,183.82,183.79,0.03571532]
[1755706286815,3.05,183.81,183.79,0.03571532]
[1755706287222,3.05,183.8,183.79,0.03571532]
[1755706287629,5.4414,183.78,183.75,4.51811965]
[1755706287933,3.05,183.8,183.74,4.51811965]
[1755706288433,3.05,183.78,183.75,5.442]
[1755706288732,5.037849,183.87,183.74,4.51811965]
[1755706288733,3.05,183.86,183.74,4.51811965]
[1755706288928,5.4416,183.77,183.74,4.51811965]
[1755706289134,3.05,183.76,183.74,4.51811965]
[1755706289335,3.05,183.8,183.74,4.51811965]
[1755706289530,143.31,183.86,183.76,5.4416]
[1755706289731,0.03879566,183.77,183.74,4.51811965]
[1755706289935,3.05,183.82,183.74,4.51811965]
[1755706290335,3.08873257,183.77,183.75,4.51811965]
[1755706290533,3.08873257,183.77,183.74,4.51811965]
[1755706290733,3.05,183.74,183.71,4.51811965]
[1755706290928,3.05,183.73,183.7,9.96171965]
[1755706291238,3.05,183.73,183.69,4.51811965]
[1755706291434,3.05,183.73,183.7,5.4434]
[1755706291631,3.05,183.77,183.69,4.51811965]
[1755706291831,0.03992353,183.73,183.71,4.51811965]
[1755706292137,0.03992353,183.73,183.72,4.51811965]
[1755706292328,0.03992353,183.73,183.71,0.21]
[1755706292529,0.03992353,183.73,183.72,5.6531]
[1755706292730,0.03992353,183.73,183.72,11.74948258]
[1755706293135,0.03992353,183.73,183.72,5.6531]
[1755706293441,5.037849,183.85,183.79,5.4408]
[1755706293442,3.05,183.85,183.79,5.4408]
[1755706293834,3.05,183.85,183.78,4.55394479]
[1755706294036,3.05,183.85,183.79,5.4409]
[1755706294436,3.05,183.85,183.78,4.55394479]
[1755706294629,3.05,183.84,183.78,4.55394479]
[1755706294833,3.08915012,183.84,183.78,4.55394479]
[1755706295243,3.08915012,183.84,183.77,4.55394479]
[1755706295940,3.08915012,183.84,183.78,9.99504479]
[1755706296136,3.08915012,183.84,183.78,4.55394479]
[1755706296336,3.08915012,183.84,183.77,4.55394479]
[1755706296535,3.08915012,183.84,183.76,4.55394479]
[1755706296937,3.08915012,183.84,183.73,4.55394479]
[1755706297134,3.08915012,183.84,183.74,4.55394479]
[1755706297546,3.05,183.84,183.74,4.55394479]
[1755706297836,3.08792191,183.81,183.73,4.55394479]
[1755706298536,3.08792191,183.81,183.74,4.76394479]
[1755706298938,3.05,183.81,183.74,4.76394479]
[1755706299135,3.05,183.85,183.75,4.55394479]
[1755706299337,0.03791164,183.79,183.78,5.441]
[1755706299537,0.03791164,183.79,183.78,5.68641732]
[1755706299732,3.05,183.85,183.78,0.03541732]
[1755706299932,0.04054457,183.8,183.78,5.47661732]
[1755706300137,0.04054457,183.8,183.78,0.24541732]
[1755706300436,5.4394,183.85,183.79,0.21]
[1755706300641,0.03675173,183.81,183.8,0.21]
[1755706300844,0.03675173,183.81,183.79,0.21]
[1755706301037,5.4393,183.85,183.81,5.4403]
[1755706301238,5.4393,183.85,183.8,0.21]
[1755706301440,0.0376816,183.82,183.8,0.21]
[1755706301642,0.0376816,183.82,183.81,5.4404]
[1755706301842,0.0376816,183.82,183.79,4.55394479]
[1755706302345,3.05,183.81,183.78,4.58936211]
[1755706302539,3.05,183.81,183.78,0.03541732]
[1755706303044,0.0376816,183.82,183.78,0.03541732]
[1755706303340,8.491,183.79,183.78,0.03541732]